bitfinex-derivatives/quotes_ETHF0:USTF0_20240905
["timestamp","ask_amount","ask_price","bid_price","bid_amount"]
[1725510458125,11.15418,2415.6,2415.5,0.00621337]
[1725510460333,11.29140535,2415.6,2415.5,0.00621337]
[1725510460834,11.29140535,2415.6,2414.6,4.2944063]
[1725510460835,0.28984,2415.0,2414.6,3.2078]
[1725510461027,0.741,2414.9,2414.6,0.64918]
[1725510461435,0.3691,2414.9,2414.6,0.64918]
[1725510463236,0.3691,2414.9,2414.7,0.28987]
[1725510463535,0.00621337,2415.0,2414.7,0.28987]
[1725510463735,0.00621337,2415.0,2414.6,3.50918]
[1725510463940,0.66965337,2415.0,2414.6,3.2193]
[1725510465326,0.66965337,2415.0,2414.6,3.50918]
[1725510465732,0.37981337,2415.0,2414.6,3.50918]
[1725510466042,0.66965337,2415.0,2414.6,3.2193]
[1725510466936,0.66965337,2415.0,2414.6,3.50918]
[1725510467734,0.37981337,2415.0,2414.6,3.50918]
[1725510469232,0.37981337,2415.0,2414.6,3.2193]
[1725510469446,0.37981337,2415.0,2414.7,0.28986]
[1725510469447,0.00621337,2415.0,2414.7,0.28986]
[1725510469745,0.00621337,2415.0,2414.8,0.67035]
[1725510469934,0.00621337,2415.0,2414.9,0.3783]
[1725510471444,4.14701337,2415.0,2414.6,3.50918]
[1725510471631,0.00621337,2415.0,2414.6,3.88748]
[1725510472740,0.00621337,2415.0,2414.7,0.28987]
[1725510473251,0.00621337,2415.0,2414.6,3.88748]
[1725510473751,0.29605337,2415.0,2414.6,3.88748]
[1725510474137,0.29605337,2415.0,2414.6,3.5976]
[1725510474948,0.29605337,2415.0,2414.6,3.88748]
[1725510475146,0.00621337,2415.0,2414.6,3.88748]
[1725510475344,0.29605337,2415.0,2414.6,3.88748]
[1725510476839,0.29605337,2415.0,2414.6,3.5976]
[1725510480046,0.29605337,2415.0,2414.6,1.9276]
[1725510480242,0.29605337,2415.0,2414.6,2.21748]
[1725510480546,0.00621337,2415.0,2414.7,0.28987]
[1725510480945,0.00621337,2415.0,2414.6,2.21747]
[1725510481547,0.00621337,2415.0,2414.7,0.28987]
[1725510481750,0.00621337,2415.0,2414.8,0.28986]
[1725510482051,0.00621337,2415.0,2414.9,0.379]
[1725510483848,0.00621337,2415.0,2414.9,1.85885]
[1725510484354,0.00621337,2415.0,2414.9,5.99965]
[1725510485252,0.00621337,2415.0,2414.9,9.20745]
[1725510486357,0.00621337,2415.0,2414.9,5.99965]
[1725510486957,0.00621337,2415.0,2414.9,1.85885]
[1725510487252,0.00621337,2415.0,2414.9,5.99965]
[1725510487653,0.00621337,2415.0,2414.9,1.569]
[1725510488855,0.00621337,2415.0,2414.9,0.379]
[1725510489059,0.29605337,2415.0,2414.6,1.9599]
[1725510489253,0.29605337,2415.0,2414.6,2.3308]
[1725510492057,0.00621337,2415.0,2414.7,1.19]
[1725510494064,0.00621337,2415.0,2414.7,1.47987]
[1725510495252,0.00621337,2415.0,2414.8,0.28986]
[1725510495449,0.00621337,2415.0,2414.9,1.47985]
[1725510495956,0.00621337,2415.0,2414.9,5.62065]
[1725510498059,0.00621337,2415.0,2414.9,1.47985]
[1725510503262,0.00621337,2415.0,2414.9,5.62065]
[1725510504664,0.00621337,2415.0,2414.9,8.82845]
[1725510504859,0.00621337,2415.0,2414.9,9.9150563]
[1725510505060,0.00621337,2415.0,2414.9,8.82845]
[1725510506459,0.00621337,2415.0,2414.9,9.9150563]
[1725510507759,0.00621337,2415.0,2414.9,11.18298946]
[1725510509355,0.00621337,2415.0,2414.9,10.6374019]
[1725510509561,0.00621337,2415.0,2414.9,9.55308]
[1725510509758,0.00621337,2415.0,2414.9,10.63740092]
[1725510510366,0.00621337,2415.0,2414.9,16.63740092]
[1725510512058,0.00621337,2415.0,2414.9,10.63740092]
[1725510515064,0.00621337,2415.0,2414.9,9.91277092]
[1725510515265,0.00621337,2415.0,2414.9,8.82845]
[1725510516960,0.00621337,2415.0,2414.9,9.18995]
[1725510518071,0.00621337,2415.0,2414.9,10.27427092]
[1725510519760,0.00621337,2415.0,2414.9,5.98215]
[1725510520167,0.00621337,2415.0,2414.9,9.18995]
[1725510521172,0.00621337,2415.0,2414.9,5.04915]
[1725510521965,0.00621337,2415.0,2414.9,9.18995]
[1725510522270,0.00621337,2415.0,2414.9,6.13347092]
[1725510527070,0.00621337,2415.0,2414.9,6.26437404]
[1725510529779,0.00621337,2415.0,2414.9,3.05657404]
[1725510529971,0.00621337,2415.0,2414.9,6.26437404]
[1725510532087,0.00621337,2415.0,2414.9,3.05657404]
[1725510532482,0.00621337,2415.0,2414.9,6.26437404]
[1725510534786,0.00621337,2415.0,2414.9,5.18005312]
[1725510535170,0.00621337,2415.0,2414.9,1.97225312]
[1725510535384,0.00621337,2415.0,2414.9,6.80996258]
[1725510535785,0.00621337,2415.0,2414.9,17.67539258]
[1725510537186,0.00621337,2415.0,2414.9,17.70769258]
[1725510538090,1.1075,2415.6,2415.5,0.28978]
[1725510538385,1.1075,2415.6,2415.5,1.47978]
[1725510539079,1.1075,2415.6,2415.5,1.19]
[1725510539280,1.1075,2415.6,2415.4,1.19]
[1725510539579,4.14,2415.5,2415.2,0.28981]
[1725510539783,0.28978,2415.5,2415.2,0.28981]
[1725510539980,0.28978,2415.5,2415.2,1.47981]
[1725510540487,0.28978,2415.5,2415.2,1.19]
[1725510540788,0.28978,2415.5,2415.2,1.47981]
[1725510540988,1.39727,2415.6,2415.2,1.47981]
[1725510541893,1.1075,2415.6,2415.3,0.28979]
[1725510542389,5.2475,2415.6,2415.3,0.28979]
[1725510542590,1.1075,2415.6,2415.3,0.28979]
[1725510544084,4.3153,2415.6,2415.3,0.28979]
[1725510544386,1.1075,2415.6,2415.3,0.28979]
[1725510546983,1.1075,2415.6,2415.1,1.08506461]
[1725510547190,0.28984,2415.0,2414.9,0.0323]
[1725510547686,4.43064,2415.0,2414.9,0.0323]
[1725510548383,4.1408,2415.0,2414.9,0.0323]
[1725510549091,7.63844,2415.0,2414.9,0.0323]
[1725510550588,13.63844,2415.0,2414.9,0.0323]
[1725510552199,7.3486,2415.0,2414.9,0.0323]
[1725510554392,4.1408,2415.0,2414.9,0.0323]
[1725510555190,4.1408,2415.0,2414.7,1.47987]
[1725510555395,0.28982,2415.1,2414.7,1.47987]
[1725510555899,1.42202,2415.2,2414.8,0.28986]
[1725510557691,1.1322,2415.2,2414.9,0.28984]
[1725510559699,1.1322,2415.2,2414.8,1.5513]
[1725510559892,1.1322,2415.2,2415.0,1.19]
[1725510560199,1.1322,2415.2,2415.0,1.47983]
[1725510562499,1.1322,2415.2,2415.1,0.28982]
[1725510562800,1.1322,2415.2,2415.0,1.47983]
[1725510563601,1.1322,2415.2,2414.9,0.28984]
[1725510565003,1.1322,2415.2,2414.8,1.5513]
[1725510565004,1.1322,2415.2,2415.0,0.28983]
[1725510566808,1.1322,2415.2,2414.9,0.28984]
[1725510567307,1.1322,2415.2,2414.8,1.84115]
[1725510567501,1.42202,2415.2,2414.8,0.65115]
[1725510570005,1.42202,2415.2,2414.8,0.3613]
[1725510570400,1.42202,2415.2,2414.8,0.65116]
[1725510570601,1.42202,2415.2,2414.8,0.3613]
[1725510572210,0.28982,2415.1,2414.8,0.3613]
[1725510572404,1.42202,2415.2,2414.8,0.65116]
[1725510574300,0.28982,2415.1,2414.8,0.3613]
[1725510574503,1.42202,2415.2,2414.8,0.3613]
[1725510575518,0.28983,2415.1,2414.8,0.3613]
[1725510576304,1.1322,2415.2,2414.8,0.3613]
[1725510576712,0.28983,2415.1,2414.8,0.3613]
[1725510578604,1.42202,2415.2,2414.8,0.3613]
[1725510579109,0.28982,2415.1,2414.8,0.3613]
[1725510579309,1.42202,2415.2,2414.8,0.3613]
[1725510580518,1.42202,2415.2,2414.8,0.65116]
[1725510580910,1.42202,2415.2,2414.8,0.3613]
[1725510581111,0.28982,2415.1,2414.8,0.3613]
[1725510581319,1.42202,2415.2,2414.8,0.3613]
[1725510583519,1.42202,2415.2,2414.8,0.65116]
[1725510583919,1.42202,2415.2,2414.9,1.47984]
[1725510583920,1.1322,2415.2,2414.9,1.47984]
[1725510584219,1.1322,2415.2,2415.0,0.7587]
[1725510584614,1.1322,2415.2,2415.1,0.3903]
[1725510586612,1.1322,2415.2,2414.8,0.32215]
[1725510586815,1.42202,2415.2,2414.8,1.51215]
[1725510588428,1.42202,2415.2,2414.8,1.2223]
[1725510588822,1.42202,2415.2,2414.8,1.51216]
[1725510589421,0.28983,2415.1,2414.8,1.2223]
[1725510590013,1.42202,2415.2,2414.8,1.2223]
[1725510590920,1.42202,2415.2,2414.8,1.51216]
[1725510593630,1.1322,2415.2,2414.8,1.2223]
[1725510593826,1.1322,2415.2,2414.8,1.51215]
[1725510594727,1.1322,2415.2,2414.9,0.28984]
[1725510595127,1.1322,2415.2,2415.0,0.3755]
[1725510595827,1.1322,2415.2,2415.0,0.66534]
[1725510596029,1.1322,2415.2,2415.0,0.3755]
[1725510596423,3.2078,2415.3,2415.0,0.3755]
[1725510596626,3.2078,2415.3,2415.1,2.25361]
[1725510598829,3.2078,2415.3,2415.1,1.9638]
[1725510600027,3.2078,2415.3,2415.1,2.25362]
[1725510600232,3.2078,2415.3,2415.2,0.28981]
[1725510600420,3.2078,2415.8,2415.5,0.28977]
[1725510600626,3.2078,2415.8,2415.6,0.3798]
[1725510600829,3.2078,2415.8,2415.6,1.1226]
[1725510601627,3.49754,2415.8,2415.6,1.1226]
[1725510601932,0.7291,2415.7,2415.6,0.3798]
[1725510602534,5.15885,2415.7,2415.4,0.3587]
[1725510602736,0.361,2415.6,2415.4,0.7206]
[1725510605831,0.7291,2415.7,2415.4,2.20039]
[1725510607130,0.7291,2415.7,2415.5,0.28977]
[1725510608850,0.7291,2415.7,2415.4,2.20038]
[1725510609025,0.28981,2415.2,2414.9,1.08506461]
[1725510609335,0.28984,2415.0,2414.5,2.7188749]
[1725510609530,4.3978,2415.2,2414.5,0.00621337]
[1725510609531,0.28987,2414.8,2414.5,0.00621337]
[1725510609732,4.7585,2414.9,2414.5,0.00621337]
[1725510609733,3.2078,2414.6,2414.5,0.00621337]
[1725510609936,1.19,2414.7,2414.5,0.00621337]
[1725510610129,4.80748,2414.6,2414.5,0.00621337]
[1725510610331,1.4799,2414.5,2413.9,1.19]
[1725510610531,3.2078,2414.4,2413.9,1.19]
[1725510610734,0.7618,2414.6,2414.2,1.19]
[1725510611134,0.7618,2414.6,2414.3,0.3653]
[1725510611534,0.7618,2414.6,2414.2,1.19621337]
[1725510612940,4.11721337,2414.7,2414.5,1.19]
[1725510613236,0.00621337,2414.7,2414.5,1.19]
[1725510613945,0.00621337,2414.7,2414.4,0.3578]
[1725510614444,0.00621337,2414.7,2414.4,0.64771]
[1725510614636,0.00621337,2414.7,2414.5,0.3617]
[1725510617838,0.00621337,2414.7,2414.6,3.14988]
[1725510618043,0.00621337,2414.7,2414.6,48.09148]
[1725510618739,0.00621337,2414.7,2414.6,54.09148]
[1725510619845,0.00621337,2414.7,2414.6,48.09148]
[1725510620848,0.00621337,2414.7,2414.6,47.8016]
[1725510621037,0.00621337,2414.7,2414.6,40.8]
[1725510621536,0.00621337,2414.7,2414.5,0.65159]
[1725510621944,0.00621337,2414.7,2414.5,41.45159]
[1725510622141,0.00621337,2414.7,2414.5,41.1617]
[1725510622338,0.00621337,2414.7,2414.5,41.45159]
[1725510624748,0.00621337,2414.7,2414.6,0.28988]
[1725510626355,0.00621337,2414.7,2414.5,41.45159]
[1725510626643,0.00621337,2414.7,2414.5,41.1617]
[1725510626953,0.00621337,2414.7,2414.5,41.45159]
[1725510628352,0.00621337,2414.7,2414.6,0.28988]
[1725510628747,0.00621337,2414.7,2414.5,41.45159]
[1725510629849,0.00621337,2414.7,2414.6,0.28988]
[1725510635950,0.00621337,2414.7,2414.6,1.47988]
[1725510639658,3.2078,2415.1,2415.0,0.28984]
[1725510639958,0.7487,2415.2,2414.9,0.28984]
[1725510640262,1.1248,2415.2,2414.9,0.28984]
[1725510640952,1.41461,2415.2,2414.8,1.47985]
[1725510641462,3.2078,2414.9,2414.5,0.0323]
[1725510641657,3.2078,2414.9,2414.5,0.69979]
[1725510641658,1.1118,2414.8,2414.5,0.69979]
[1725510645767,1.1118,2414.8,2414.5,0.4099]
[1725510645958,1.1118,2414.8,2414.5,0.6998]
[1725510646153,1.1118,2414.8,2414.5,1.8898]
[1725510646963,1.40167,2414.8,2414.5,0.0323]
[1725510647964,3.49768,2414.6,2414.5,0.0323]
[1725510648157,4.68768,2414.6,2414.5,0.0323]
[1725510648467,8.82928,2414.6,2414.5,0.0323]
[1725510648666,0.28991,2414.5,2414.2,0.00621337]
[1725510648866,0.7281,2414.4,2414.2,0.00621337]
[1725510649061,1.1083,2414.4,2414.2,0.00621337]
[1725510653262,0.7363,2414.4,2414.2,0.00621337]
[1725510654763,1.02621,2414.4,2414.2,0.00621337]
[1725510654974,0.7363,2414.4,2414.2,0.00621337]
[1725510658172,0.7363,2414.4,2414.2,0.29614337]
[1725510658375,0.7363,2414.4,2414.3,0.67502]
[1725510658676,0.7363,2414.4,2414.3,1.40872]
[1725510659978,4.111,2414.8,2414.3,1.1188]
[1725510660181,6.0678,2414.4,2414.2,0.00621337]
[1725510660470,3.995,2414.3,2413.5,3.9578]
[1725510660673,3.2078,2413.9,2413.5,0.3777]
[1725510660875,1.04278,2413.8,2413.2,0.3723]
[1725510661064,1.04278,2413.8,2413.2,0.75]
[1725510661268,0.7528,2413.8,2413.2,0.75]
[1725510661473,0.7528,2413.8,2413.3,0.00621337]
[1725510661474,0.00621337,2413.7,2413.3,0.00621337]
[1725510663880,0.38911337,2413.7,2413.3,0.00621337]
[1725510668387,0.00621337,2413.7,2413.3,0.00621337]
[1725510668572,0.00621337,2413.7,2413.3,2.86621337]
[1725510668775,0.00621337,2413.7,2413.5,0.29001]
[1725510670377,0.00621337,2413.7,2413.3,2.86621337]
[1725510670573,0.00621337,2413.7,2413.3,0.29624337]
[1725510674891,0.00621337,2413.7,2413.5,0.29001]
[1725510675080,0.00621337,2413.7,2413.4,0.29002]
[1725510677184,0.00621337,2413.7,2413.5,0.29001]
[1725510677382,0.00621337,2413.7,2413.6,0.7521]
[1725510682290,0.00621337,2413.7,2413.6,9.5831]
[1725510684896,0.00621337,2413.7,2413.6,5.1853]
[1725510685597,0.00621337,2413.7,2413.6,5.5471]
[1725510686289,0.00621337,2413.7,2413.6,11.5471]
[1725510686492,3.2078,2414.2,2413.9,0.28996]
[1725510686689,3.2078,2414.2,2414.0,0.3717]
[1725510688891,3.2078,2414.2,2414.0,0.7315]
[1725510689689,3.2078,2414.2,2414.0,1.1118]
[1725510691993,3.2078,2414.2,2414.0,1.40175]
[1725510692693,3.2078,2414.2,2413.5,4.29286461]
[1725510692694,4.1424,2414.1,2413.7,0.28999]
[1725510692895,4.3978,2414.2,2413.7,0.28999]
[1725510692896,0.3773,2414.0,2413.7,0.28999]
[1725510693099,0.739,2414.0,2413.6,1.3848]
[1725510693804,0.3764,2413.9,2413.6,1.3848]
[1725510695594,0.3764,2413.9,2413.6,0.3552]
[1725510698398,0.739,2414.0,2413.6,0.3552]
[1725510698600,7.3188,2414.2,2413.7,2.24838]
[1725510699604,7.60873,2414.2,2413.7,2.24838]
[1725510700300,7.3188,2414.2,2413.7,2.24838]
[1725510701107,7.60873,2414.2,2413.7,2.24838]
[1725510702606,7.3188,2414.2,2413.8,0.28998]
[1725510702807,7.60873,2414.2,2413.7,2.24838]
[1725510703001,7.60873,2414.2,2413.7,0.7684]
[1725510703002,0.28995,2414.1,2413.7,0.7684]
[1725510703211,0.368,2414.0,2413.7,0.7684]
[1725510703397,0.7543,2414.0,2413.7,0.7684]
[1725510703905,0.3696,2413.9,2413.7,0.7684]
[1725510704512,0.3696,2413.9,2413.7,1.05839]
[1725510706709,3.5774,2413.9,2413.6,0.3552]
[1725510706904,3.86737,2413.9,2413.6,0.3552]
[1725510707599,3.5774,2413.9,2413.6,0.3552]
[1725510708211,3.86737,2413.9,2413.6,0.3552]
[1725510709607,0.3696,2413.9,2413.6,0.64519]
[1725510709913,0.3696,2413.9,2413.7,0.28999]
[1725510710105,0.3696,2413.9,2413.7,0.65189]
[1725510711615,0.7543,2414.0,2413.8,0.28998]
[1725510711816,0.7543,2414.0,2413.8,0.65768]
[1725510712015,0.7543,2414.0,2413.9,0.3687]
[1725510715218,0.7543,2414.0,2413.8,0.65767]
[1725510715520,0.3576,2413.9,2413.8,0.65767]
[1725510718425,4.111,2414.2,2413.8,0.65767]
[1725510718722,0.3562,2414.1,2413.8,0.65767]
[1725510722312,1.47993,2414.3,2413.8,0.65767]
[1725510722313,1.47992,2414.3,2413.8,0.65767]
[1725510722621,0.66223,2414.2,2413.8,0.65767]
[1725510722811,0.3723,2414.2,2413.8,0.65767]
[1725510723513,0.3723,2414.2,2413.9,0.28997]
[1725510724010,0.3723,2414.2,2414.0,0.3732]
[1725510727120,0.3723,2414.2,2413.8,0.68997]
[1725510727317,0.3723,2414.2,2413.8,1.04667]
[1725510730627,0.3723,2414.2,2413.9,0.28996]
[1725510734033,0.3723,2414.2,2413.8,0.7567]
[1725510734034,0.28995,2414.1,2413.8,0.0323]
[1725510734229,1.47996,2414.0,2413.8,0.0323]
[1725510734424,0.3854,2413.9,2413.8,0.0323]
[1725510734625,1.1244,2413.9,2413.8,0.0323]
[1725510738736,3.2078,2414.4,2413.8,5.3647]
[1725510738932,3.2078,2414.4,2413.4,2.89829261]
[1725510738933,2.12467766,2413.3,2413.1,4.14374927]
[1725510739141,0.72523,2412.9,2411.9,1.08499695]
[1725510739341,0.72523,2412.9,2411.5,3.2078]
[1725510739342,0.29022,2411.8,2411.5,2.70975726]
[1725510739538,4.3978,2411.7,2411.5,9.99026851]
[1725510740043,3.2078,2411.7,2411.4,0.00621337]
[1725510740345,3.2078,2411.7,2411.6,9.99026851]
[1725510741539,3.34205091,2411.7,2411.6,9.99026851]
[1725510741946,6.21205091,2411.7,2411.6,9.99026851]
[1725510760865,6.21205091,2411.7,2411.4,0.00621337]
[1725510760866,16.35845091,2411.7,2411.4,0.00621337]
[1725510761069,16.35845091,2411.7,2410.2,4.27971]
[1725510761070,3.5564,2411.6,2410.8,0.3667]
[1725510761370,3.2078,2410.9,2410.8,0.3667]
[1725510761863,3.2078,2410.9,2410.8,10.35696851]
[1725510763263,3.2078,2410.9,2410.8,10.64730851]
[1725510765876,3.2078,2410.9,2410.8,10.35696851]
[1725510766371,3.2078,2410.9,2410.8,10.64730851]
[1725510770171,4.40128,2411.4,2410.8,10.64730851]
[1725510770172,3.2078,2411.3,2411.0,0.29031]
[1725510770375,3.2078,2411.3,2411.2,9.99026851]
[1725510773677,6.0778,2411.3,2411.2,9.99026851]
[1725510776072,4.3978,2411.3,2411.2,9.99026851]
[1725510778779,4.3978,2411.3,2410.8,0.399]
[1725510778780,10.68808,2411.3,2410.8,0.399]
[1725510778970,4.3978,2410.9,2410.8,0.68934]
[1725510779478,4.3978,2410.9,2410.8,10.67960851]
[1725510782368,4.3978,2410.9,2410.8,10.38926851]
[1725510782772,4.3978,2410.9,2410.8,10.02256851]
[1725510784276,4.61813144,2410.9,2410.8,10.02256851]
[1725510784680,4.3978,2410.9,2410.8,10.02256851]
[1725510785285,4.61812656,2410.9,2410.8,10.02256851]
[1725510786376,4.3978,2410.9,2410.8,10.02256851]
[1725510786577,4.61812895,2410.9,2410.8,10.02256851]
[1725510787377,4.3978,2410.9,2410.8,10.02256851]
[1725510788089,4.3978,2410.9,2410.8,10.31290851]
[1725510788792,4.3978,2410.9,2410.8,10.02256851]
[1725510790187,4.3978,2410.9,2410.8,9.99026851]
[1725510799500,4.61813071,2410.9,2410.8,9.99026851]
[1725510799688,4.61813044,2410.9,2410.8,9.99026851]
[1725510799994,4.3978,2410.9,2410.8,9.99026851]
[1725510801082,4.61812203,2410.9,2410.8,9.99026851]
[1725510801490,4.3978,2410.9,2410.8,9.99026851]
[1725510802291,4.61811078,2410.9,2410.8,9.99026851]
[1725510802486,4.61811078,2410.9,2410.8,10.28060851]
[1725510802694,4.61811078,2410.9,2410.8,9.99026851]
[1725510803189,4.3978,2410.9,2410.8,10.28060851]
[1725510803384,4.61811242,2410.9,2410.8,10.28060851]
[1725510803590,4.8384218,2410.9,2410.8,10.28060851]
[1725510806591,4.61811242,2410.9,2410.8,10.28060851]
[1725510806796,4.83842126,2410.9,2410.8,10.28060851]
[1725510807099,4.83841805,2410.9,2410.8,10.28060851]
[1725510809703,1.63061805,2410.9,2410.8,10.28060851]
[1725510810092,1.41031242,2410.9,2410.8,10.28060851]
[1725510810399,1.63061702,2410.9,2410.8,10.28060851]
[1725510811987,1.63061702,2410.9,2410.8,10.65790851]
[1725510812391,1.4103046,2410.9,2410.8,10.65790851]
[1725510813495,1.19,2410.9,2410.8,10.65790851]
[1725510813693,1.41030198,2410.9,2410.8,10.65790851]
[1725510813899,1.63060526,2410.9,2410.8,10.65790851]
[1725510815305,1.41030198,2410.9,2410.8,10.65790851]
[1725510815499,1.63059942,2410.9,2410.8,10.65790851]
[1725510817196,1.41030198,2410.9,2410.8,10.65790851]
[1725510817601,1.63059905,2410.9,2410.8,10.65790851]
[1725510818792,2.05057412,2410.9,2410.8,10.65790851]
[1725510819299,2.05057412,2410.9,2410.8,10.69020851]
[1725510819799,1.63059905,2410.9,2410.8,10.69020851]
[1725510820103,2.05056173,2410.9,2410.8,10.39986851]
[1725510821997,2.05057498,2410.9,2410.8,10.39986851]
[1725510822192,1.41030198,2410.9,2410.8,10.39986851]
[1725510823204,4.61810198,2410.9,2410.8,10.69020851]
[1725510823406,5.25837524,2410.9,2410.8,10.39986851]
[1725510823612,4.61810198,2410.9,2410.8,10.39986851]
[1725510824105,4.61810198,2410.9,2410.8,10.69020851]
[1725510826209,4.3978,2410.9,2410.8,10.69020851]
[1725510827103,1.19,2410.9,2410.8,10.69020851]
[1725510829098,1.19,2410.9,2410.8,11.05400851]
[1725510830501,1.83026067,2410.9,2410.8,11.05400851]
[1725510831804,1.83830541,2411.2,2411.1,0.2903]
[1725510831997,1.19,2411.2,2411.1,9.99026851]
[1725510832404,1.48029,2411.2,2411.1,9.99026851]
[1725510833195,1.19,2411.2,2411.1,9.99026851]
[1725510835513,4.3978,2411.2,2411.1,9.99026851]
[1725510838317,3.2078,2411.2,2411.1,9.99026851]
[1725510838618,3.2078,2411.5,2411.3,0.29028]
[1725510838801,4.3978,2411.5,2411.3,9.99026851]
[1725510839109,3.2078,2411.5,2411.4,9.99026851]
[1725510840615,4.111,2412.2,2411.9,0.2902]
[1725510840616,4.3978,2412.1,2411.9,0.2902]
[1725510840812,1.19,2412.1,2412.0,1.1164]
[1725510841114,1.19,2412.1,2412.0,11.39065514]
[1725510841610,1.19621337,2412.3,2412.0,11.39065514]
[1725510841817,1.19621337,2412.3,2412.0,1.4066]
[1725510842007,1.19621337,2412.3,2412.2,9.98405514]
[1725510842403,0.00621337,2412.3,2412.2,9.98405514]
[1725510843811,0.00621337,2412.3,2412.2,10.27422514]
[1725510845116,3.2078,2412.4,2412.3,0.29016]
[1725510845319,3.2078,2412.4,2412.3,10.27421514]
[1725510846106,4.3978,2412.4,2412.3,10.27421514]
[1725510848808,4.3978,2412.4,2412.3,9.98405514]
[1725510853218,4.3978,2412.4,2412.0,1.1164]
[1725510853522,3.2078,2412.1,2412.0,1.1164]
[1725510853912,3.2078,2412.1,2412.0,11.10045514]
[1725510856914,1.19,2412.3,2412.0,11.10045514]
[1725510857111,1.19,2412.3,2412.2,9.98405514]
[1725510858316,1.19,2412.3,2412.2,10.27422514]
[1725510860010,1.19,2412.3,2412.1,0.29018]
[1725510860238,1.19,2412.3,2412.2,9.98405514]
[1725510865728,1.19,2412.3,2412.2,10.27422514]
[1725510866829,1.19,2412.3,2412.2,9.98405514]
[1725510873135,4.3978,2412.3,2412.2,9.98405514]
[1725510878050,4.3978,2412.3,2412.2,10.27422514]
[1725510878544,4.111,2412.8,2412.2,10.27422514]
[1725510878741,3.2078,2412.6,2412.5,0.29014]
[1725510879245,3.2078,2412.6,2412.5,10.27419514]
[1725510879649,3.2078,2412.9,2412.5,9.98405514]
[1725510879852,3.2078,2412.9,2412.7,0.2901]
[1725510880041,3.2078,2412.9,2412.8,9.98405514]
[1725510883952,3.2078,2412.9,2412.8,10.27415514]
[1725510884145,3.2078,2412.9,2412.8,9.98405514]
[1725510884948,3.2078,2412.9,2412.8,10.27415514]
[1725510886953,3.2078,2412.9,2412.8,9.98405514]
[1725510887642,4.3978,2413.1,2412.8,10.27415514]
[1725510887842,4.3978,2413.1,2413.0,9.98405514]
[1725510889746,4.61764876,2413.1,2413.0,9.98405514]
[1725510891750,4.90770876,2413.1,2413.0,9.98405514]
[1725510892147,10.61764876,2413.1,2412.1,3.2078]
[1725510892353,1.19,2412.4,2412.3,0.9238]
[1725510892856,1.19,2412.4,2412.3,10.90785514]
[1725510894457,4.3978,2412.5,2412.3,10.90785514]
[1725510894650,4.3978,2412.5,2412.4,9.98405514]
[1725510896154,4.3978,2412.5,2412.4,10.44515514]
[1725510896555,1.19,2412.5,2412.4,10.44515514]
[1725510896746,4.3978,2412.5,2412.4,10.44515514]
[1725510898249,1.19,2412.5,2412.4,10.44515514]
[1725510898857,4.3978,2412.5,2412.4,10.44515514]
[1725510899263,1.19,2412.5,2412.4,10.44515514]
[1725510899762,4.3978,2412.5,2412.4,10.44515514]
[1725510899955,1.19,2412.5,2412.4,10.44515514]
[1725510900364,4.3978,2412.5,2412.4,10.44515514]
[1725510900661,5.03722374,2412.5,2411.8,0.29642337]
[1725510900852,1.18257,2412.8,2411.9,0.9072]
[1725510900853,4.3978,2412.1,2411.9,0.9072]
[1725510901356,4.3978,2412.1,2412.0,9.98405514]
[1725510902653,4.3978,2412.1,2412.0,10.27425514]
[1725510902654,3.2078,2412.1,2412.0,10.27425514]
[1725510906656,3.2078,2412.1,2412.0,11.46425514]
[1725510908663,2.1008,2412.7,2412.5,0.29013]
[1725510908957,1.19,2412.7,2412.5,9.98405514]
[1725510909358,1.19,2412.7,2412.5,11.36515514]
[1725510910866,0.21992152,2412.6,2412.5,11.36515514]
[1725510911667,0.21993507,2412.6,2412.5,11.36515514]
[1725510914670,0.21993507,2412.6,2412.5,11.65529514]
[1725510914870,3.2078,2412.8,2412.7,0.29011]
[1725510915074,4.111,2413.0,2412.8,0.2901]
[1725510915263,4.111,2413.0,2412.9,11.63954514]
[1725510915463,4.111,2413.0,2412.9,9.98405514]
[1725510915768,4.3308518,2413.0,2412.9,9.98405514]
[1725510915962,4.3308518,2413.0,2412.9,11.37045514]
[1725510916163,4.3308518,2413.0,2412.9,9.98405514]
[1725510916364,4.6209318,2413.0,2412.9,9.98405514]
[1725510916663,6.72160821,2413.0,2412.0,1.40399082]
[1725510916866,1.48016,2412.3,2412.2,9.07186514]
[1725510917067,4.61779192,2412.3,2412.0,1.11380082]
[1725510917266,1.48018,2412.1,2412.0,1.11380082]
[1725510917458,1.70017192,2412.1,2412.0,1.11380082]
[1725510920071,3.38017192,2412.1,2412.0,1.11380082]
[1725510920480,3.38017192,2412.1,2412.0,0.0323]
[1725510921876,3.09003674,2412.1,2412.0,0.0323]
[1725510922175,2.87,2412.1,2412.0,0.0323]
[1725510922483,0.4809,2412.2,2412.0,8.15596514]
[1725510923475,0.4809,2412.2,2412.1,8.12366514]
[1725510923780,0.99109974,2412.2,2412.1,8.12366514]
[1725510924275,7.120562,2412.2,2410.8,40.8]
[1725510924472,3.2078,2411.3,2411.2,0.4628]
[1725510924870,2.87,2411.5,2411.2,7.11638514]
[1725510925077,2.87,2411.5,2411.4,6.65358514]
[1725510925276,3.2078,2411.6,2411.4,6.65358514]
[1725510925472,3.2078,2411.6,2411.5,6.65358514]
[1725510926876,3.2078,2411.6,2411.3,0.9111]
[1725510927179,3.2078,2411.6,2411.4,6.65358514]
[1725510928876,3.2078,2411.6,2411.5,6.65358514]
[1725510932078,3.42792073,2411.6,2411.2,0.00621337]
[1725510932376,2.87621337,2411.7,2411.2,0.00621337]
[1725510932377,6.36808,2411.3,2411.2,0.00621337]
[1725510932779,6.36808,2411.3,2411.2,6.65979851]
[1725510934585,6.36808,2411.3,2411.2,0.00621337]
[1725510935078,6.36808,2411.3,2411.2,6.65979851]
[1725510944193,3.16028,2411.3,2411.2,6.65979851]
[1725510944393,6.36808,2411.3,2411.2,6.65979851]
[1725510945293,3.16028,2411.3,2411.2,6.65979851]
[1725510945795,6.36808,2411.3,2411.2,6.65979851]